Cogmind - Beta 16 @@@ ROGUE MODE // 2025.11.27 @ 13:22:44 Player: Mozco Result: Self-destructed Performance ------------- Evolutions (3) 1500 Regions Visited (8) 1600 Robots Destroyed (144) 720 Value Destroyed (3574) 3574 Prototype IDs (47) 940 Alien Tech Used (0) 0 Bonus (344) 344 TOTAL SCORE: 8678 Bonus ------- High Alert Combat Kills 44 Aligned with FarCom 300 Cogmind --------- Core Integrity 672/700 Matter 224/300 Energy 279/280 System Corruption 1% Temperature Cool (0) Movement Treading (161) Location -7/Factory Parts ------- > --- POWER (1) -------- Heavy Ion Engine > --- PROPULSION (6) --- Light Treads Light Treads Armored Treads Medium Treads Medium Treads Medium Treads > --- UTILITY (4) ------ Huge Storage Unit Advanced Targeting Computer Improved Armor Integrity Analyzer > --- WEAPON (2) ------- Advanced Beam Rifle 8R-AWN's Boregun > --- INVENTORY (25) --- Reinforced Fission Core Armored Treads Experimental Sensor Array Transport Network Coupler Advanced Transmission Jammer Hardened Heavy Armor Plating EX Chip 1 EX Chip 2 Authchip [Weapon] Improved Trap Extractor (0/6) Trap Reconfigurator AWS/EX-DEC Advanced Beam Rifle Advanced Beam Rifle Advanced EMP Blaster Mini Grenade Launcher Mini Grenade Launcher Deploy-a-Sentry Peak State ------------ > --- POWER ------------ Heavy Ion Engine > --- PROPULSION ------- Light Treads Armored Treads Medium Treads Medium Treads Medium Treads > --- UTILITY ---------- Huge Storage Unit Advanced Targeting Computer Improved Armor Integrity Analyzer > --- WEAPON ----------- 8R-AWN's Boregun 8R-AWN's Boregun > --- INVENTORY -------- Reinforced Fission Core Armored Treads Experimental Sensor Array Transport Network Coupler Advanced Transmission Jammer Hardened Heavy Armor Plating EX Chip 1 EX Chip 2 Authchip [Weapon] Improved Trap Extractor Trap Reconfigurator AWS/EX-DEC Advanced Beam Rifle Advanced Beam Rifle Advanced Beam Rifle Advanced EMP Blaster Mini Grenade Launcher Mini Grenade Launcher Deploy-a-Sentry [Rating: 60] Favorites ----------- Power Heavy Ion Engine Engine Heavy Ion Engine Power Core Reinforced Fission Core Propulsion Light Treads Treads Light Treads Utility Huge Storage Unit Device Improved Heat Sink Storage Huge Storage Unit Processor Targeting Computer Hackware Hacking Suite Protection Light Armor Plating Weapon Heavy EM Pulse Gun Energy Gun Heavy EM Pulse Gun Energy Cannon Advanced Beam Cannon Ballistic Gun 8R-AWN's Boregun Ballistic Cannon Light Cannon Launcher Mini Grenade Launcher Slashing Weapon Axe Special Melee Weapon Datajack Build | -11 -10 -10 -9 -9 -9 -8 -8 -7 ------- Run | Yrd Mat Min Mat Min Exi Min Mat Fac Slots Evolved 6 | . . . 2 . . . 2 2 Power . | . . . . . . . . . Propulsion 4 | . . . 1 . . . 2 1 Utility 2 | . . . 1 . . . . 1 Weapon . | . . . . . . . . . Parts Attached 77 | 6 12 1 16 2 14 3 20 3 Power 7 | 1 2 . 1 . 1 1 1 . Engine 6 | 1 2 . 1 . 1 1 . . Core 1 | . . . . . . . 1 . Reactor . | . . . . . . . . . Propulsion 24 | 2 . . 7 . 2 1 11 1 Treads 24 | 2 . . 7 . 2 1 11 1 Leg . | . . . . . . . . . Wheel . | . . . . . . . . . Hover . | . . . . . . . . . Flight . | . . . . . . . . . Utility 20 | 1 5 1 3 2 4 1 2 1 Device 5 | . . . . 1 2 . 2 . Storage 5 | 1 4 . . . . . . . Processor 5 | . 1 1 . . 2 . . 1 Hackware 1 | . . . 1 . . . . . Protection 4 | . . . 2 1 . 1 . . Artifact . | . . . . . . . . . Weapon 26 | 2 5 . 5 . 7 . 6 1 Energy Gun 15 | 2 2 . 3 . 3 . 4 1 Energy Cannon 1 | . . . 1 . . . . . Ballistic Gun 2 | . . . . . 2 . . . Ballistic Cannon 2 | . 2 . . . . . . . Launcher 4 | . 1 . 1 . . . 2 . Special Weapon . | . . . . . . . . . Impact Weapon . | . . . . . . . . . Slashing Weapon 1 | . . . . . 1 . . . Piercing Weapon . | . . . . . . . . . Special Melee Weapon 1 | . . . . . 1 . . . Unidentified Prototypes 5 | . . . 4 . . . 1 . Corrupted Parts 3 | . . . . . . 1 2 . System Corruption 15 | . . . . . . 5 10 . Parts Lost 21 | . . . 2 2 2 . 14 1 Power . | . . . . . . . . . Propulsion 9 | . . . . . 1 . 8 . Utility 7 | . . . 1 2 1 . 3 . Weapon 5 | . . . 1 . . . 3 1 Highest Loss Streak 6 | . . . 1 2 2 . 6 1 To Critical Strikes . | . . . . . . . . . Average Backups 18 | . 12 21 21 21 15 24 22 17 Power 1 | . 1 2 1 1 1 1 1 1 Propulsion 2 | . 2 4 4 4 1 2 2 1 Utility 4 | . 4 7 4 3 2 7 8 9 Weapon 8 | . 3 7 9 11 8 13 10 6 Tool/Special . | . . . . . . . . . Unused Backups 27 | . 3 . 3 . 7 . 4 10 Power 5 | . 1 . 1 . 3 . . . Propulsion . | . . . . . . . . . Utility 11 | . 1 . 1 . 1 . . 8 Weapon 11 | . 1 . 1 . 3 . 4 2 Tool/Special . | . . . . . . . . . Average Slot Usage (%) 90 | . 98 99 99 96 80 88 88 82 Engine 11 | . 14 14 11 11 9 11 9 7 Treads 31 | . 28 28 32 33 26 33 44 38 Device 4 | . . . . . 12 1 2 . Storage 10 | . 14 14 11 11 7 11 9 7 Processor 9 | . 12 13 11 8 4 11 9 13 Protection 4 | . . . 9 9 4 9 1 . Energy Gun 11 | . 10 28 17 11 2 11 9 1 Ballistic Gun 1 | . . . . . 3 . 1 11 Ballistic Cannon 1 | . 14 . . . . . . . Launcher 2 | . 2 . . 11 . . 1 2 Slashing Weapon 1 | . . . . . 4 . . . Peak Build Rating 60 | 6 12 13 19 21 45 47 59 60 Average Rating 24 | 4 8 12 17 18 26 46 45 55 On Entrance 24 | . 6 11 13 16 21 45 47 57 Avg Prop Armor Cover (%) 8 | . . . . . . . 8 . Naked Turns . | . . . . . . . . . Heaviest Build 102 | 12 91 91 98 96 102 100 100 100 Greatest Support 144 | 40 40 40 60 60 60 60 124 144 Greatest Overweight (x) 27 | . 2 2 1 1 27 1 1 . Average Overweight (x) . | . . 2 1 1 . 1 . . Largest Inventory Capacity 25 | 8 25 25 25 25 25 25 25 25 Average Capacity 21 | 7 14 25 25 25 19 25 25 25 Most Carried 25 | 2 21 25 25 25 25 25 25 21 Average Carried 20 | . 12 24 24 24 16 24 24 20 Final Capacity 25 | 8 25 25 25 25 25 25 25 25 Final Carried 25 | 2 21 25 25 25 25 25 21 20 Class Distribution -------------------- 71% | Mutant 28% | Scavenger-Mutant Dominant Class ---------------- Mutant | -10/Materials Mutant | -10/Mines Mutant | -9/Materials Mutant | -9/Mines Mutant | -9/Exiles Scavenger-Mutant | -8/Mines Scavenger-Mutant | -8/Materials Mutant | -7/Factory Resources | -11 -10 -10 -9 -9 -9 -8 -8 -7 ----------- Run | Yrd Mat Min Mat Min Exi Min Mat Fac Matter Collected 2893 | 246 419 289 220 92 928 . 642 57 Remotely . | . . . . . . . . . Salvage Created 4885 | . 603 88 1388 70 439 . 2105 192 Parts 340 | . 39 4 92 7 50 . 133 15 Haulers Intercepted 9 | . 2 . 4 . . . 3 . Recyclers Shooed 2 | . 1 . . 1 . . . . Parts Field Recycled . | . . . . . . . . . Retrieved Matter . | . . . . . . . . . Parts Self-Destructed . | . . . . . . . . . Prevented . | . . . . . . . . . Parts Restored . | . . . . . . . . . Kills | -11 -10 -10 -9 -9 -9 -8 -8 -7 ------- Run | Yrd Mat Min Mat Min Exi Min Mat Fac Combat Hostiles Destroyed 102 | . 18 2 26 8 6 . 37 5 Melee 2 | . . . . . 2 . . . Guns 42 | . . 2 17 2 . . 19 2 Cannons 11 | . 10 . 1 . . . . . AOE 37 | . 8 . 5 5 4 . 12 3 Classes Destroyed 19 | . 5 . 7 1 2 . 3 1 Worker 10 | . 1 . 1 . . . 7 1 Builder 7 | . . . 1 1 . . 5 . Tunneler 2 | . . . 1 . . . 1 . Hauler 9 | . 2 . 4 . . . 3 . Recycler 2 | . . . 1 . . . 1 . Operator 3 | . 1 . 2 . . . . . Turret 1 | . . . . . 1 . . . Watcher 8 | . . . 3 . . . 5 . Swarmer 22 | . 3 . 8 4 . . 4 3 Cutter 3 | . . . . . . . 3 . Grunt 52 | . 15 2 11 . 3 . 21 . Brawler 1 | . . . 1 . . . . . Duelist 3 | . . . 1 . . . 2 . Sentry 11 | . . . 5 . . . 5 1 Hunter 1 | . . . . . . . 1 . Programmer 1 | . . . . . . . . 1 Heavy 1 | . . . . . . . 1 . Zionite 4 | . . . . . 4 . . . Assembled 9 | . . . . 4 5 . . . Best Kill Streak 12 | . 5 2 6 4 5 . 12 4 Combat Bots Only 10 | . 4 2 5 4 5 . 10 3 Max Kills in Single Turn 4 | . 3 1 4 3 2 . 4 2 Gunslinging . | . . . . . . . . . Exploded 4 | . 2 . 4 3 2 . 4 2 Melee 1 | . . . . . 1 . . . Uniques/NPCs Destroyed 4 | . . . . . 4 . . . EX-DEC (-9/Exiles) EX-BIN (-9/Exiles) EX-HEX (-9/Exiles) 8R-AWN (-9/Exiles) Combat | -11 -10 -10 -9 -9 -9 -8 -8 -7 -------- Run | Yrd Mat Min Mat Min Exi Min Mat Fac Hostile Shots Fired 400 | . 58 3 78 30 21 . 174 36 Missed 103 | . 15 2 27 9 4 . 33 13 Hits 297 | . 43 1 51 21 17 . 141 23 Melee 14 | . . . . 9 . . 5 . Projectile 283 | . 43 1 51 12 17 . 136 23 AOE 2 | . . . . . . . 2 . Critical Strikes 7 | . 1 . . . . . 6 . Damage Taken 4637 | . 503 16 611 346 442 . 2485 234 Core 443 | . 92 . 58 29 37 . 199 28 Absorbed by Shields . | . . . . . . . . . Redirected to Shielding 47 | . . . . . . . 47 . Regen/Repaired (Parts) 124 | . . . 101 . . . 23 . Core Remaining (%) 73 | 100 . 63 . . . 69 63 . Volleys Fired 264 | . 43 3 60 24 65 . 58 11 Largest 2 | . 2 2 2 1 2 . 2 2 Hottest 113 | . 90 90 113 45 90 . 106 91 Shots Fired 470 | . 71 6 111 25 92 . 145 20 Gun 372 | . 16 6 93 18 83 . 138 18 Cannon 63 | . 47 . 16 . . . . . Launcher 35 | . 8 . 2 7 9 . 7 2 Special . | . . . . . . . . . Kinetic 158 | . 47 . . . 62 . 36 13 Thermal 40 | . 5 . 16 . 10 . 4 5 Explosive 35 | . 8 . 2 7 9 . 7 2 Electromagnetic 237 | . 11 6 93 18 11 . 98 . Robot Hit Streak 14 | . 8 4 12 7 6 . 14 5 Robot Miss Streak 5 | . 3 2 5 3 5 . 3 1 Penetration Max 2 | . . . . . 1 . 2 . Secondary Targets 3 | . . . 3 . . . . . Max Gunslinging Chain 1 | . . . 1 . . . . . Autonomous 55 | . . . . . . . 55 . Shots Hit Robots 321 | . 38 4 78 13 64 . 111 13 Core Hits 229 | . 35 3 46 12 34 . 87 12 Critical Kills 11 | . . . 1 . 2 . 7 1 Critical Parts Destroyed 23 | . . . . . 8 . 13 2 Critical Strikes 49 | . 5 . 3 . 13 . 23 5 Burn 4 | . . . . . 1 . 1 2 Meltdown 1 | . . . 1 . . . . . Destroy 35 | . . . . . 11 . 21 3 Blast 5 | . 5 . . . . . . . Corrupt 3 | . . . 2 . . . 1 . Sever 1 | . . . . . 1 . . . Melee Attacks 40 | . . . . . 40 . . . Impact . | . . . . . . . . . Slashing 36 | . . . . . 36 . . . Piercing . | . . . . . . . . . Sneak Attacks 4 | . . . . . 4 . . . Combat Hostiles . | . . . . . . . . . Follow-up Attacks . | . . . . . . . . . Damage Inflicted 10518 | . 1142 66 1927 510 1933 54 4503 383 Guns 5416 | . 170 66 1177 193 750 . 2834 226 Cannons 678 | . 485 . 193 . . . . . Explosions 3475 | . 473 . 557 311 393 . 1584 157 Melee 785 | . . . . . 785 . . . Ramming 164 | . 14 . . 6 5 54 85 . Kinetic 1846 | . 485 . . . 546 . 649 166 Thermal 1194 | . 64 . 481 . 189 . 400 60 Explosive 2810 | . 473 . 269 311 334 . 1266 157 Electromagnetic 3719 | . 106 66 1177 193 74 . 2103 . Impact . | . . . . . . . . . Slashing 785 | . . . . . 785 . . . Piercing . | . . . . . . . . . Highest Corruption 10 | . 1 1 . 7 7 5 10 1 Average Corruption 4 | . 1 1 . 6 7 5 9 1 Corruption Purged 7 | . . . . . 7 . . . Corruption Blocked . | . . . . . . . . . Effects 105 | . 4 13 . 11 65 . 12 . Message Errors 31 | . 2 3 . 4 20 . 2 . Matter Fused 29 | . . 1 . 2 23 . 3 . Heat Flow Errors 7 | . . 3 . . 3 . 1 . Energy Discharges 11 | . . 3 . 2 6 . . . Parts Fused 3 | . . 1 . . 1 . 1 . Data Loss (minor) 13 | . 2 2 . 1 6 . 2 . Data Loss (major) 5 | . . . . 1 3 . 1 . Misfires 3 | . . . . 1 2 . . . Alerts 2 | . . . . . 1 . 1 . Weapon Failures 1 | . . . . . . . 1 . Overload Shots . | . . . . . . . . . Overflow Damage 124 | . 12 . 38 11 28 12 23 . Projectiles 12 | . . . 12 . . . . . Explosions 72 | . 12 . 26 11 . . 23 . Melee 40 | . . . . . 28 12 . . Knockbacks 3 | . 1 . . . . 1 1 . Impact 2 | . . . . . . 1 1 . Kinetic 1 | . 1 . . . . . . . Secondary . | . . . . . . . . . Self-Inflicted Damage 247 | . . . 54 26 31 . 136 . Shots 9 | . . . 2 1 2 . 4 . Rammed 9 | . 2 . . . 2 2 3 . Targets Rammed 12 | . 2 . . 1 2 2 5 . Kicked . | . . . . . . . . . Crushed 3 | . . . . 1 . . 2 . Highest Temperature 261 | . 261 261 242 36 232 . 249 72 Average Temperature 76 | . 86 98 76 15 95 . 73 34 Received Heat Transfer 1472 | . 258 9 138 . 98 . 927 42 Effects 5 | . 1 . 3 . . . 1 . Energy Bleed 2 | . 1 . . . . . 1 . Interference 3 | . . . 3 . . . . . Siege Activations . | . . . . . . . . . Martial Activations . | . . . . . . . . . Shielding Activations . | . . . . . . . . . Robots Disrupted . | . . . . . . . . . Combat Hostiles . | . . . . . . . . . Robots Corrupted 9 | . . . 2 1 . . 6 . Combat Hostiles 9 | . . . 2 1 . . 6 . Parts Fried 22 | . . . 8 . . . 14 . Impact Corruptions 2 | . . . . . . 2 . . Robots Melted 2 | . . . 1 . 1 . . . Combat Hostiles 1 | . . . 1 . . . . . Parts Melted 10 | . . . 3 . 7 . . . Heat Transferred 2269 | . 185 . 833 . 370 . 622 259 Parts Sabotaged . | . . . . . . . . . Parts Stolen . | . . . . . . . . . Parts Stripped . | . . . . . . . . . Power Chain Reactions 9 | . . . 5 . 1 . 3 . Alert | -11 -10 -10 -9 -9 -9 -8 -8 -7 ------- Run | Yrd Mat Min Mat Min Exi Min Mat Fac Maximum Alert Level 2 | . 1 . 1 . . . 2 1 Low Security (%) 74 | 100 50 100 53 100 . 100 60 8 Level 1 23 | . 49 . 46 . . . 30 91 Level 2 1 | . . . . . . . 8 . Level 3 . | . . . . . . . . . Level 4 . | . . . . . . . . . Level 5 . | . . . . . . . . . High Security . | . . . . . . . . . Max Security . | . . . . . . . . . Peak Influence 486 | . 367 126 357 139 . . 486 283 Initial 217 | . . 126 . 139 . . . 217 Average 103 | . 174 16 168 23 . . 175 236 Influence Increases 2918 | . 624 50 841 134 . . 1123 146 Destroy 0b10 Robot/C 1840 | . 360 40 520 80 . . 740 100 Destroy 0b10 Robot/NC 205 | . 20 . 65 5 . . 110 5 Destroy Leader 454 | . 94 10 144 10 . . 166 30 Successful Hack 73 | . 16 . 36 . . . 21 . Select Force Hacks 60 | . 60 . . . . . . . Disable Machine 75 | . 15 . 45 . . . 15 . Destroy Structure 181 | . 44 . 31 39 . . 56 11 Lose Combat Pursuer 30 | . 15 . . . . . 15 . Influence Decreases 2655 | . 299 375 484 491 . . 646 360 Entered New Map 677 | . . 199 . 218 . . . 260 Time Decay 1788 | . 299 176 464 253 . . 506 90 Lost Part 190 | . . . 20 20 . . 140 10 Squads Dispatched 15 | . 5 . 5 . . . 5 . Investigation 6 | . 3 . 2 . . . 1 . Extermination . | . . . . . . . . . Reinforcement 9 | . 2 . 3 . . . 4 . Assault . | . . . . . . . . . Garrison . | . . . . . . . . . Intercept . | . . . . . . . . . Searches Triggered . | . . . . . . . . . Construction Impeded 1 | . . . . . . . 1 . Haulers Reinforced . | . . . . . . . . . Active Scanning Responses . | . . . . . . . . . Cargo Convoy Interrupts . | . . . . . . . . . Stealth | -11 -10 -10 -9 -9 -9 -8 -8 -7 --------- Run | Yrd Mat Min Mat Min Exi Min Mat Fac Distress Signals 7 | . 1 . 4 . . . 2 . Communications Jammed . | . . . . . . . . . Distress Signals . | . . . . . . . . . Times Spotted 183 | . 25 2 37 10 56 . 49 4 Peak Tracking Total 12 | . 4 2 6 4 9 . 12 3 Tactical Retreats 35 | . 1 . . 1 32 . 1 . Traps | -11 -10 -10 -9 -9 -9 -8 -8 -7 ------- Run | Yrd Mat Min Mat Min Exi Min Mat Fac Traps Triggered 2 | . 2 . . . . . . . Indirectly . | . . . . . . . . . Trap Hack Attempts . | . . . . . . . . . Triggered . | . . . . . . . . . Disarmed 6 | . . . 6 . . . . . Reprogrammed . | . . . . . . . . . Reused 3 | . . . . . 3 . . . Traps Extracted . | . . . . . . . . . Installed 3 | . . . . . 3 . . . Triggered . | . . . . . . . . . Most Traps Carried 3 | . . 3 3 3 3 . . . Machines | -11 -10 -10 -9 -9 -9 -8 -8 -7 ---------- Run | Yrd Mat Min Mat Min Exi Min Mat Fac Machines Disabled 23 | . 1 . 3 . 18 . 1 . Max in Single Turn 3 | . 1 . 1 . 3 . 1 . Machines Repaired . | . . . . . . . . . Machines Dismantled . | . . . . . . . . . Machines Sabotaged . | . . . . . . . . . Overloaded Fab Kills . | . . . . . . . . . Hacking | -11 -10 -10 -9 -9 -9 -8 -8 -7 --------- Run | Yrd Mat Min Mat Min Exi Min Mat Fac Machines Accessed 18 | . 5 . 6 . 2 . 5 . Terminals 11 | . 3 . 4 . . . 4 . Fabricators . | . . . . . . . . . Repair Stations 2 | . . . 1 . . . 1 . Recycling Units 2 | . 2 . . . . . . . Scanalyzers 1 | . . . 1 . . . . . Garrison Access . | . . . . . . . . . Total Hacks 68 | . 19 . 28 . 2 . 19 . Successful 36 | . 8 . 18 . 2 . 8 . Failed 31 | . 11 . 9 . . . 11 . Catastrophic 6 | . 1 . 2 . . . 3 . Database Lockouts 1 | . . . 1 . . . . . Manual 44 | . 19 . 12 . 1 . 12 . Terminals 48 | . 16 . 17 . . . 15 . Fabricators . | . . . . . . . . . Repair Stations 6 | . . . 2 . . . 4 . Recycling Units 3 | . 3 . . . . . . . Scanalyzers 9 | . . . 9 . . . . . Garrison Access . | . . . . . . . . . Terminal Hacks 15 | . 4 . 5 . 2 . 4 . Record 1 | . . . . . 1 . . . Part Schematic 2 | . 1 . . . . . 1 . Robot Analysis 7 | . 3 . 2 . . . 2 . Prototype ID Bank 2 | . . . 1 . . . 1 . Repair Station Index 1 | . . . 1 . . . . . Disarm Traps 1 | . . . 1 . . . . . Proto ID Catalog 1 | . . . . . 1 . . . Fabricator Hacks . | . . . . . . . . . Repair Station Hacks 4 | . . . 2 . . . 2 . Scan Component 2 | . . . 1 . . . 1 . Repair 2 | . . . 1 . . . 1 . Recycling Unit Hacks . | . . . . . . . . . Scanalyzer 7 | . . . 7 . . . . . Insert Component 3 | . . . 3 . . . . . Analyze 3 | . . . 3 . . . . . Retrieve Study 1 | . . . 1 . . . . . Garrison Access Hacks . | . . . . . . . . . Unauthorized Hacks 10 | . 4 . 4 . . . 2 . Terminals 8 | . 2 . 4 . . . 2 . Botnet 7 | . 2 . 3 . . . 2 . Disrupt 1 | . . . 1 . . . . . Fabricators . | . . . . . . . . . Repair Stations . | . . . . . . . . . Recycling Units 2 | . 2 . . . . . . . Tunnel 2 | . 2 . . . . . . . Scanalyzers . | . . . . . . . . . Garrison Access . | . . . . . . . . . Data Cores Recovered . | . . . . . . . . . Used . | . . . . . . . . . Hacking Detections 15 | . 4 . 6 . . . 5 . Full Trace Events 5 | . 3 . 1 . . . 1 . Feedback Events . | . . . . . . . . . Feedback Blocked . | . . . . . . . . . Robot Schematics Acquired . | . . . . . . . . . Robots Built . | . . . . . . . . . Authchips . | . . . . . . . . . Time . | . . . . . . . . . Total Robot Build Rating . | . . . . . . . . . Part Schematics Acquired 5 | . 1 . 3 . . . 1 . Parts Built . | . . . . . . . . . Authchips . | . . . . . . . . . Time . | . . . . . . . . . Total Part Build Rating . | . . . . . . . . . Part Studies Acquired 1 | . . . 1 . . . . . Parts Repaired 2 | . . . 1 . . . 1 . Time 162 | . . . 26 . . . 136 . Parts Recycled . | . . . . . . . . . Recycled Matter . | . . . . . . . . . Retrieved Matter . | . . . . . . . . . Retrieved Components . | . . . . . . . . . Parts Scanalyzed 3 | . . . 3 . . . . . Part Schematics Acquired 3 | . . . 3 . . . . . Parts Damaged 1 | . . . 1 . . . . . Bothacking | -11 -10 -10 -9 -9 -9 -8 -8 -7 ------------ Run | Yrd Mat Min Mat Min Exi Min Mat Fac Used RIF Installer . | . . . . . . . . . Robots Hacked 4 | . . . . . 4 . . . Non-combat 3 | . . . . . 3 . . . Combat 1 | . . . . . 1 . . . Robot Hacks Applied 4 | . . . . . 4 . . . parse_system 4 | . . . . . 4 . . . Relay Couplers Released . | . . . . . . . . . Fabnet Peak Effective % . | . . . . . . . . . Robots Rewired . | . . . . . . . . . Allies Hacked . | . . . . . . . . . Hacks Repelled . | . . . . . . . . . Allies | -11 -10 -10 -9 -9 -9 -8 -8 -7 -------- Run | Yrd Mat Min Mat Min Exi Min Mat Fac Total Allies 4 | . . . . 4 . . . . Largest Group 3 | . . . . 3 3 . . . Highest-Rated Group 40 | . . . . 40 40 . . . Highest-Rated Ally 31 | . . . . 31 16 . . . Total Orders 4 | . . . . . 4 . . . STAY 3 | . . . . . 3 . . . GUARD 1 | . . . . . 1 . . . Ally Attacks 61 | . . . . 13 48 . . . Total Damage 280 | . . . . 146 134 . . . Kills 2 | . . . . 2 . . . . Allies Corrupted . | . . . . . . . . . Allies Melted . | . . . . . . . . . Intel | -11 -10 -10 -9 -9 -9 -8 -8 -7 ------- Run | Yrd Mat Min Mat Min Exi Min Mat Fac Active Infowar (turns) 974 | . . . . . 898 . 76 . Terrain 898 | . . . . . 898 . . . Jamming 76 | . . . . . . . 76 . Robot Analysis Total 7 | . 3 . 2 . . . 2 . Derelict Logs Recovered 2 | . . 1 . 1 . . . . Drone Launches . | . . . . . . . . . Drone Recoveries . | . . . . . . . . . Exploration | -11 -10 -10 -9 -9 -9 -8 -8 -7 ------------- Run | Yrd Mat Min Mat Min Exi Min Mat Fac Turns Passed 11195 | 81 1172 1426 1454 1448 3410 548 1474 182 Spaces Moved 4800 | 50 596 441 588 483 1536 270 747 89 Core 208 | 8 . . . . 200 . . . Treads 4592 | 42 596 441 588 483 1336 270 747 89 Legs . | . . . . . . . . . Wheels . | . . . . . . . . . Hover . | . . . . . . . . . Flight . | . . . . . . . . . Fastest Speed 50 | 50 160 320 200 200 50 200 160 161 Average Speed 194 | 142 167 320 204 200 180 200 162 161 Slowest Speed 1400 | 160 320 320 240 200 1400 200 213 162 Overloaded Moves . | . . . . . . . . . Propulsion Burnouts . | . . . . . . . . . Robots Hopped . | . . . . . . . . . Potential Cave-ins . | . . . . . . . . . Cave-ins Triggered . | . . . . . . . . . Exploration Rate (%) 61 | 4 90 89 64 96 91 69 46 4 Regions Visited 8 Branch Regions 4 Pre-discovered Areas 5 | . 2 1 . 1 1 . . . Known Exits Taken . | . . . . . . . . . Unknown Exits Taken 8 | 1 1 1 1 1 1 1 1 . Scrap Searched 5 | . . 3 . 2 . . . . Spaces Dug 18 | . . . . 11 . . . 7 Terrain Destroyed 312 | . 47 . 29 84 72 . 66 14 Melee . | . . . . . . . . . Projectile 21 | . . . . . 12 . 9 . AOE 291 | . 47 . 29 84 60 . 57 14 Terrain Rammed . | . . . . . . . . . Walls Destroyed . | . . . . . . . . . Machines Disabled . | . . . . . . . . . Actions | -11 -10 -10 -9 -9 -9 -8 -8 -7 --------- Run | Yrd Mat Min Mat Min Exi Min Mat Fac Total 6204 | 57 701 452 729 941 2031 276 912 105 Wait 759 | . 8 . 38 425 260 . 27 1 Move 4792 | 49 595 440 587 482 1535 269 746 89 Hop . | . . . . . . . . . Pick Up 124 | 2 24 6 7 4 59 1 21 . Fast Attach 38 | 6 4 1 8 . 11 . 6 2 Attach 33 | . . . 4 3 6 . 19 1 Detach 3 | . . . . . 2 . 1 . Swap 50 | . 12 . 9 1 12 3 12 1 Drop 86 | . 13 2 16 1 36 1 17 . Fire 264 | . 43 3 60 24 65 . 58 11 Melee 40 | . . . . . 40 . . . Ram . | . . . . . . . . . Kick . | . . . . . . . . . Crush 12 | . 2 . . 1 2 2 5 . Escape Stasis . | . . . . . . . . . Rewire . | . . . . . . . . . Trap 3 | . . . . . 3 . . . Miscellaneous . | . . . . . . . . . Route ------- -11/Scrapyard -10/Materials (discovered 5 exits: *Mat x3 / [*Min x2]) -10/Mines (discovered 2 exits: *Mat x2) -9/Materials (discovered 3 exits: *Mat / [*Min x2]) -9/Mines (discovered 3 exits: *Mat x2 / *Exi) -9/Exiles -8/Mines -8/Materials (discovered 2 exits: *Fac x2) -7/Factory History --------- Turn | Location | Event 2 | -11/Scrapyard | Met Revision 17 4 | -11/Scrapyard | Discovered new exit (range 15) 82 | -11/Scrapyard | Entered Materials 271 | -10/Materials | Discovered new exit (range 14) 300 | -10/Materials | Build established: Mutant 499 | -10/Materials | Discovered new exit (range 9) 677 | -10/Materials | Discovered new exit (range 12) 900 | -10/Materials | Discovered new exit (range 10) 1118 | -10/Materials | Discovered new exit (range 14) 1254 | -10/Materials | Entered Mines 1275 | -10/Mines | Found DCF Scrap (12 items) 1313 | -10/Mines | Met a Derelict bent on vengeance 1458 | -10/Mines | Learned location of Zion (-7) 1544 | -10/Mines | Discovered new exit (range 10) 1685 | -10/Mines | Found a hidden stash of uninstalled traps 2301 | -10/Mines | Discovered new exit (range 8) 2490 | -10/Mines | Found a damaged Exp. Sensor Array with a note attached 2503 | -10/Mines | Found Prototype Device 2680 | -10/Mines | Entered Materials 2680 | -9/Materials | Evolved 2 slots: Propulsion x1, Utility x1 2731 | -9/Materials | Repaired Lgt. Treads 2923 | -9/Materials | Identified Exp. Sensor Array 3371 | -9/Materials | Central database locked down 3411 | -9/Materials | Discovered new exit (range 16) 3664 | -9/Materials | Discovered new exit (range 15) 3910 | -9/Materials | Discovered new exit (range 12) 4134 | -9/Materials | Entered Mines 4205 | -9/Mines | Discovered new exit (range 10) 4235 | -9/Mines | Discovered new exit (range 9) 4238 | -9/Mines | Received a Mining Laser from a helpful Derelict 4665 | -9/Mines | Assembled infested the area 4670 | -9/Mines | Assisted by a Guerilla fighting off Assembled 5350 | -9/Mines | Assisted by bots powering up and referring to "LRC-V3" 5574 | -9/Mines | Deemed a non-threat by the Exiles lab entrance 5574 | -9/Mines | Discovered new exit (range 5) 5582 | -9/Mines | Entered Exiles 5582 | -9/Exiles | Accompanied by 3 allies 5630 | -9/Exiles | Met 8R-AWN 5673 | -9/Exiles | Met EX-HEX 5733 | -9/Exiles | Met EX-BIN 5804 | -9/Exiles | Met EX-DEC 6023 | -9/Exiles | Warned about trapping Exiles lab 6137 | -9/Exiles | Aligned with FarCom system 6139 | -9/Exiles | Given EX-Vault access code 6187 | -9/Exiles | Opened EX-Vault 6203 | -9/Exiles | Found Trap Reconfigurator 6244 | -9/Exiles | Warned to stay clear of 0b10 Research branches 6788 | -9/Exiles | Attacked by the Exiles 6880 | -9/Exiles | Found 8R-AWN's Boregun 6884 | -9/Exiles | Found 8R-AWN's Boregun 7551 | -9/Exiles | Destroyed EX-DEC 7580 | -9/Exiles | Destroyed EX-BIN 7601 | -9/Exiles | Found System Purifier 7615 | -9/Exiles | Found AWS/EX-DEC 7618 | -9/Exiles | Found Deploy-a-Sentry 7686 | -9/Exiles | Build established: Scavenger-Mutant 7713 | -9/Exiles | Destroyed EX-HEX 8426 | -9/Exiles | Destroyed 8R-AWN 8970 | -9/Exiles | Discovered new exit (range 14) 8992 | -9/Exiles | Stole two prototypes: Trap Reconfigurator, Deploy-a-Sentry 8992 | -9/Exiles | Entered Mines 9457 | -8/Mines | Discovered new exit (range 7) 9540 | -8/Mines | Entered Materials 9540 | -8/Materials | Evolved 2 slots: Propulsion x2 10110 | -8/Materials | Discovered new exit (range 11) 10125 | -8/Materials | Destroyed 10 combat bots 10126 | -8/Materials | Lost 5 parts (3n1u1w) 10734 | -8/Materials | Discovered new exit (range 11) 10773 | -8/Materials | Destroyed 7 combat bots 10774 | -8/Materials | System corruption reached 10% 10843 | -8/Materials | Repaired Broken Exp. Sensor Array? 10910 | -8/Materials | Lost 6 parts (4n2w) 11014 | -8/Materials | Entered Factory 11014 | -7/Factory | Evolved 2 slots: Propulsion x1, Utility x1 11147 | -7/Factory | Build established: Mutant 11196 | -7/Factory | Self-destructed Last Messages --------------- 11153_ U-05 Engineer lays Concrete. 11167_ HV Slug penetrates Nuclear Reactor. 11167_ HV Slug penetrates Y-54 Guardian. 11167_ Y-54 Guardian suffers critical hit (Destroy). 11167_ Destroyed Imp. Deuterium Engine. 11170_ Y-54 Guardian suffers critical hit (Burn). 11170_ HV Slug penetrates Y-54 Guardian. 11170_ HV Slug penetrates Terminal. 11173_ HV Slug penetrates Y-54 Guardian. 11173_ HV Slug penetrates Terminal. 11176_ HV Slug penetrates Y-54 Guardian. 11176_ HV Slug penetrates Terminal. 11179_ Y-54 Guardian suffers critical hit (Burn). 11179_ HV Slug penetrates Y-54 Guardian. 11179_ Y-54 Guardian suffers critical hit (Destroy). 11179_ Y-54 Guardian destroyed. 11179_ HV Slug penetrates Terminal. 11190_ Acquired Lgt. Treads+. 11196_ Connecting with Terminal... 11196_ Current location identified: Factory Map ----- +----------------------------------------------------+ | ???????# #???????????????????????????????????????? | | ???????# #??????????????????? ??????????????????? | | ???????# #####?????????????? ?????????????????? | | ??????##%= #?????????????? ?????????????????? | | ?????### #????????????? ?????????????????? | | ?????# # [% ##???????????? ??????????????????? | | ?????# #??????????? ???????????????????? | | ?????# #??????????? ????????????????????? | | ?????## ##??????#####+############??????????? | | ??????# [=%######### ??????????? | | ??????# ?????????? | | ??????# ?????????? | | ??????# ????????? | | ??????## ????????? | | ???????# ????????? | | ???????####+########## ????????? | | ????????? ????#######+############???????????? | | ???????#= """ ??# ! #????????????????? | | ???????# """ #?# ! m #????????????????? | | ???????#[ """ #?# #????????????????? | | ???????# [#?# """ #????????????????? | | ???????# """ #?# [""" #????????????????? | | ???????#! """ #?# ==[ [%""" #????????????????? | | ???????# ?????#?# ==[ ! #????????????????? | | ???????# ???????# =[[ #????????????????? | | ???????###????????# @ #????????????????? | | ??????????????????# """"T"""" #????????????????? | | ??????????????????# """"""""""" #???????????????? | | ??????????????????################???????????????? | | | | | | | | | | | | | | | | | | | | | | | | | | | | | | | | | | | | | | | | | | | +----------------------------------------------------+ Best States ------------- Heat Dissipation 45 Energy Generation 14 Energy Capacity 280 Matter Stores 300 Matter Capacity 300 Sight Range 16 Terrain Scan Range 16 Terrain Scan Density 10 Jamming Range 16 Corruption Containment 12 Armor Coverage 150 Propulsion Shielding 66 Evasion (%) 50 Targeting Accuracy 8 Armor Integrity Analysis 40 Recoil Reduction 5 Offensive Hacking 10 Authchip Count 1 Item Schematics ----------------- Huge Storage Unit | -10/Materials | Hacked Exp. Sensor Array | -9/Materials | Scanalyzed Lgt. Treads | -9/Materials | Scanalyzed Ion Engine | -9/Materials | Scanalyzed Arm. Treads | -8/Materials | Hacked Robot Schematics ------------------ None Fabricated ------------ Nothing Repaired ---------- Lgt. Treads | 27% | -9/Materials Exp. Sensor Array | 20% | -8/Materials | Broken Studied --------- Lgt. Treads | -9/Materials | Hacked Alien Tech Used ----------------- None Achievements -------------- None Challenges ------------ None Game ------ Seed ZhirovPitchforkDetector Manual? 0 Play Time 00:58:01 Cumulative 347.9 hours Start 2025.11.27 @ 11:53:28 End 2025.11.27 @ 13:22:44 Sessions 1 Manual Loads 0 Difficulty Rogue Special Mode None Game No. 362 Rogue 358 Adventurer 3 Explorer 1 Win Type - Total 2 Types 2/0/0/0/0/0/0/0/0/0 Lore% 83 Gallery% 78 Achievement% 65 Wizard Run 0 Options --------- Layout 0 ASCII 0 Keyboard 0 Movement Mouse Keybinds 0 Fullscreen 2 Font 18/SmallcapsGlow Map View 76x50 Zoom Use 0% Tactical HUD 1 Map Filters NONE Filters NONE Steam 1 RUN: 8591efb8-9d69-4788-88d7-71bfac68dcae